fUSD/lending_fUSD_20250103
["ID","MTS","AMOUNT","RATE_DAILY","PERIOD"]
[347542872,1735911380116,-685.02,9.253e-05,2]
[347542873,1735911380138,-561.0,9.253e-05,2]
[347542874,1735911380163,-500.0,9.253e-05,2]
[347542875,1735911380187,-500.0,9.253e-05,2]
[347542876,1735911380209,-500.0,9.253e-05,2]
[347542877,1735911380231,-524.51,9.253e-05,2]
[347542878,1735911380254,-500.0,9.253e-05,2]
[347542879,1735911380277,-646.45,9.253e-05,2]
[347542880,1735911380301,-500.0,9.253e-05,2]
[347542881,1735911380322,-500.0,9.253e-05,2]
[347542882,1735911380344,-214.09948099,9.253e-05,2]
[347542883,1735911380367,-767.86,9.253e-05,2]
[347542884,1735911380389,-237.42,9.253e-05,2]
[347542885,1735911380410,-603.86,9.253e-05,2]
[347542886,1735911380432,-768.22,9.253e-05,2]
[347542887,1735911380455,-500.0,9.253e-05,2]
[347542888,1735911380478,-819.89,9.253e-05,2]
[347542889,1735911380500,-500.0,9.253e-05,2]
[347542890,1735911380522,-500.0,9.253e-05,2]
[347542891,1735911380549,-500.0,9.253e-05,2]
[347542892,1735911380571,-500.0,9.253e-05,2]
[347542893,1735911380595,-500.0,9.253e-05,2]
[347542894,1735911380618,-500.0,9.253e-05,2]
[347542895,1735911380652,-800.01,9.253e-05,2]
[347542896,1735911380675,-500.0,9.253e-05,2]
[347542897,1735911380698,-500.0,9.253e-05,2]
[347542898,1735911380722,-517.03,9.253e-05,2]
[347542899,1735911380744,-500.0,9.253e-05,2]
[347542900,1735911380767,-500.0,9.253e-05,2]
[347542901,1735911380789,-577.37,9.253e-05,2]
[347542902,1735911380812,-500.0,9.253e-05,2]
[347542903,1735911380833,-500.0,9.253e-05,2]
[347542904,1735911380855,-500.0,9.253e-05,2]
[347542905,1735911380878,-500.0,9.253e-05,2]
[347542906,1735911380913,-500.0,9.253e-05,2]
[347542907,1735911380938,-500.0,9.253e-05,2]
[347542908,1735911380960,-500.0,9.253e-05,2]
[347542909,1735911380983,-500.0,9.253e-05,2]
[347542910,1735911381005,-500.0,9.253e-05,2]
[347542911,1735911381027,-634.23,9.253e-05,2]
[347542912,1735911381049,-500.0,9.253e-05,2]
[347542913,1735911381071,-500.0,9.253e-05,2]
[347542914,1735911381092,-303.55646607,9.253e-05,2]
[347542915,1735911381114,-500.0,9.253e-05,2]
[347542916,1735911381136,-500.0,9.253e-05,2]
[347542917,1735911381158,-500.0,9.253e-05,2]
[347542918,1735911381180,-500.0,9.253e-05,2]
[347542919,1735911381202,-500.0,9.253e-05,2]
[347542920,1735911381225,-500.0,9.253e-05,2]
[347542921,1735911381247,-500.0,9.253e-05,2]
[347542922,1735911381269,-500.0,9.253e-05,2]
[347542923,1735911381292,-500.0,9.253e-05,2]
[347542924,1735911381314,-500.0,9.253e-05,2]
[347542925,1735911381337,-535.70954898,9.253e-05,2]
[347542926,1735911381359,-500.0,9.253e-05,2]
[347542927,1735911381382,-500.0,9.253e-05,2]
[347542928,1735911381405,-500.0,9.253e-05,2]
[347542929,1735911381428,-500.0,9.253e-05,2]
[347542930,1735911381451,-500.0,9.253e-05,2]
[347542931,1735911381473,-500.0,9.253e-05,2]
[347542932,1735911381497,-667.31,9.253e-05,2]
[347542933,1735911381520,-500.0,9.253e-05,2]
[347542934,1735911381542,-500.0,9.253e-05,7]
[347542935,1735911381565,-500.0,9.253e-05,2]
[347542936,1735911381588,-500.0,9.253e-05,2]
[347542937,1735911381610,-500.0,9.253e-05,2]
[347542938,1735911381635,-500.0,9.253e-05,2]
[347542939,1735911381657,-575.94,9.253e-05,2]
[347542940,1735911381680,-500.0,9.253e-05,2]
[347542941,1735911381703,-500.0,9.253e-05,2]
[347542942,1735911381727,-500.0,9.253e-05,2]
[347542943,1735911381750,-500.0,9.253e-05,2]
[347542944,1735911381771,-500.0,9.253e-05,2]
[347542945,1735911381794,-500.0,9.253e-05,2]
[347542946,1735911381816,-500.0,9.253e-05,2]
[347542947,1735911381840,-500.0,9.253e-05,2]
[347542948,1735911381862,-821.7,9.253e-05,2]
[347542949,1735911381885,-782.31,9.253e-05,2]
[347542950,1735911381908,-500.0,9.253e-05,2]
[347542951,1735911381932,-500.0,9.253e-05,2]
[347542952,1735911381956,-500.0,9.253e-05,2]
[347542953,1735911381979,-500.0,9.253e-05,2]
[347542954,1735911382002,-500.0,9.253e-05,2]
[347542955,1735911382024,-500.0,9.253e-05,2]
[347542956,1735911382046,-500.0,9.253e-05,2]
[347542957,1735911382068,-500.0,9.253e-05,2]
[347542958,1735911382091,-500.0,9.253e-05,2]
[347542959,1735911382113,-500.0,9.253e-05,2]
[347542960,1735911382136,-500.0,9.253e-05,2]
[347542961,1735911382158,-695.93,9.253e-05,2]
[347542962,1735911382180,-500.0,9.253e-05,2]
[347542963,1735911382203,-500.0,9.253e-05,2]
[347542964,1735911382226,-500.0,9.253e-05,2]
[347542965,1735911382348,-766.39,9.253e-05,2]
[347542966,1735911382426,-500.0,9.253e-05,2]
[347542967,1735911382450,-500.0,9.253e-05,2]
[347542968,1735911382474,-679.02,9.253e-05,2]
[347542969,1735911382498,-500.0,9.253e-05,2]
[347542970,1735911382521,-500.0,9.253e-05,2]
[347542971,1735911382544,-500.0,9.253e-05,2]
[347542972,1735911382567,-500.0,9.253e-05,2]
[347542973,1735911382590,-500.0,9.253e-05,2]
[347542974,1735911382613,-500.0,9.253e-05,2]
[347542975,1735911382639,-506.97,9.253e-05,2]
[347542976,1735911382663,-516.99,9.253e-05,2]
[347542977,1735911382684,-528.96,9.253e-05,2]
[347542978,1735911382708,-2855.79,9.253e-05,2]
[347542979,1735911382732,-752.29,9.253e-05,2]
[347542980,1735911382754,-500.0,9.253e-05,2]
[347542981,1735911382777,-500.0,9.253e-05,2]
[347542982,1735911382800,-500.0,9.253e-05,2]
[347542983,1735911382823,-8528.44,9.253e-05,2]
[347542984,1735911382846,-524.4,9.253e-05,2]
[347542985,1735911382868,-652.88013468,9.254e-05,3]
[347542986,1735911382891,-156.995149,9.254e-05,2]
[347542987,1735911382915,-6832.21,9.254e-05,2]
[347542988,1735911382938,-672.86,9.254e-05,2]
[347542989,1735911382961,-3134.88,9.254e-05,2]
[347542990,1735911382985,-6223.09,9.254e-05,2]
[347542991,1735911383008,-1343.3,9.254e-05,2]
[347542992,1735911383031,-667.88,9.254e-05,2]
[347542993,1735911383053,-1282.12,9.254e-05,2]
[347542994,1735911383076,-862.19,9.254e-05,2]
[347542995,1735911383101,-500.0,9.254e-05,2]
[347542996,1735911383124,-722.7,9.254e-05,2]
[347542997,1735911383148,-500.0,9.254e-05,2]
[347542998,1735911383173,-500.0,9.254e-05,2]
[347542999,1735911383197,-810.53,9.254e-05,2]
[347543000,1735911383221,-514.54,9.254e-05,2]
[347543001,1735911383244,-567.44,9.254e-05,2]
[347543002,1735911383269,-500.0,9.254e-05,2]
[347543003,1735911383292,-668.89,9.254e-05,2]
[347543004,1735911383318,-986.46,9.254e-05,2]
[347543005,1735911383342,-500.0,9.254e-05,2]
[347543006,1735911383366,-980.78,9.254e-05,2]
[347543007,1735911383389,-630.51,9.254e-05,2]
[347543008,1735911383414,-1101.77,9.254e-05,2]
[347543009,1735911383438,-1254.06,9.254e-05,2]
[347543010,1735911383463,-894.87,9.254e-05,2]
[347543011,1735911383486,-669.19,9.254e-05,2]
[347543012,1735911383509,-500.0,9.254e-05,2]
[347543013,1735911383533,-500.0,9.254e-05,2]
[347543014,1735911383557,-500.0,9.254e-05,2]
[347543015,1735911383580,-611.02,9.254e-05,2]
[347543016,1735911383604,-940.96,9.254e-05,2]
[347543017,1735911383630,-276.28030179,9.254e-05,2]
[347543018,1735911383653,-151.0,9.254e-05,2]
[347543019,1735911383678,-690.25,9.254e-05,2]
[347543020,1735911383702,-500.0,9.254e-05,2]
[347543021,1735911383727,-991.05,9.254e-05,2]
[347543022,1735911383750,-540.58,9.254e-05,2]
[347543023,1735911383772,-748.1,9.254e-05,2]
[347543024,1735911383797,-500.0,9.254e-05,2]
[347543025,1735911383820,-527.5,9.254e-05,2]
[347543026,1735911383843,-915.98,9.254e-05,2]
[347543027,1735911383867,-992.23,9.254e-05,2]
[347543028,1735911383889,-799.13,9.254e-05,2]
[347543029,1735911383925,-2266.76,9.254e-05,2]
[347543030,1735911383949,-795.89,9.254e-05,2]
[347543031,1735911383974,-1416.07,9.254e-05,2]
[347543032,1735911384000,-702.37,9.254e-05,2]
[347543033,1735911384024,-571.17,9.254e-05,2]
[347543034,1735911384048,-821.69,9.254e-05,2]
[347543035,1735911384071,-1463.88,9.254e-05,2]
[347543036,1735911384093,-530.42,9.254e-05,2]
[347543037,1735911384117,-911.33,9.254e-05,2]
[347543038,1735911384141,-953.09,9.254e-05,2]
[347543039,1735911384176,-500.0,9.254e-05,2]
[347543040,1735911384204,-1281.85,9.254e-05,2]
[347543041,1735911384229,-2454.54,9.254e-05,2]
[347543042,1735911384254,-674.24,9.254e-05,2]
[347543043,1735911384279,-1050.45,9.254e-05,2]
[347543044,1735911384304,-583.2,9.254e-05,2]
[347543045,1735911384329,-2251.2,9.254e-05,2]
[347543046,1735911384355,-632.57,9.254e-05,2]
[347543047,1735911384381,-863.99,9.254e-05,2]
[347543048,1735911384415,-973.13,9.254e-05,2]
[347543049,1735911384439,-1174.44,9.254e-05,2]
[347543050,1735911384465,-500.0,9.254e-05,2]
[347543051,1735911384490,-500.0,9.254e-05,2]
[347543052,1735911384515,-2354.49,9.254e-05,2]
[347543053,1735911384539,-1500.05,9.254e-05,2]
[347543054,1735911384564,-1001.66,9.254e-05,2]
[347543055,1735911384589,-905.69,9.254e-05,2]
[347543056,1735911384614,-684.8,9.254e-05,2]
[347543057,1735911384642,-1709.9,9.254e-05,2]
[347543058,1735911384673,-1222.36,9.254e-05,2]
[347543059,1735911384696,-660.68,9.254e-05,2]
[347543060,1735911384722,-500.0,9.254e-05,2]
[347543061,1735911384747,-7199.2,9.254e-05,2]
[347543062,1735911384770,-500.0,9.254e-05,2]
[347543063,1735911384799,-733.89,9.254e-05,2]
[347543064,1735911384825,-830.03,9.254e-05,2]
[347543065,1735911384849,-736.19,9.254e-05,2]
[347543066,1735911384875,-617.61,9.254e-05,2]
[347543067,1735911384901,-1235.46,9.254e-05,2]
[347543068,1735911384930,-3060.86,9.254e-05,2]
[347543069,1735911384955,-910.48,9.254e-05,2]
[347543070,1735911384979,-515.95,9.254e-05,2]
[347543071,1735911385003,-500.0,9.254e-05,2]
[347543072,1735911385028,-844.17,9.254e-05,2]
[347543073,1735911385051,-790.79,9.254e-05,2]
[347543074,1735911385077,-301.90332299,9.254e-05,2]
[347543075,1735911385102,-735.35,9.254e-05,2]
[347543076,1735911385126,-1025.64,9.254e-05,2]
[347543077,1735911385621,-724.69,9.254e-05,2]
[347543078,1735911385656,-500.0,9.254e-05,2]
[347543079,1735911385681,-500.0,9.254e-05,2]
[347543080,1735911385706,-4239.02,9.254e-05,2]
[347543081,1735911385730,-500.0,9.254e-05,2]
[347543082,1735911385755,-1372.12,9.254e-05,2]
[347543083,1735911385782,-1006.77,9.254e-05,2]
[347543084,1735911385808,-1023.35,9.254e-05,2]
[347543085,1735911385832,-710.19,9.254e-05,2]
[347543086,1735911385856,-646.1,9.254e-05,2]
[347543087,1735911385880,-949.03,9.254e-05,2]
[347543088,1735911385906,-544.89,9.254e-05,2]
[347543089,1735911385930,-914.09,9.254e-05,2]
[347543090,1735911385953,-2475.36,9.254e-05,2]
[347543091,1735911385976,-500.0,9.254e-05,2]
[347543092,1735911385999,-518.13,9.254e-05,2]
[347543093,1735911386022,-500.0,9.254e-05,2]
[347543094,1735911386045,-515.39,9.254e-05,2]
[347543095,1735911386070,-595.24,9.254e-05,2]
[347543096,1735911386094,-500.0,9.254e-05,2]
[347543097,1735911386117,-629.19,9.254e-05,2]
[347543098,1735911386140,-3275.71,9.254e-05,2]
[347543099,1735911386165,-244.15026202,9.254e-05,2]
[347543100,1735911386188,-1387.68,9.254e-05,2]
[347543101,1735911386212,-657.03,9.254e-05,2]
[347543102,1735911386237,-604.43,9.254e-05,2]
[347543103,1735911386261,-720.78,9.254e-05,2]
[347543104,1735911386284,-500.0,9.254e-05,2]
[347543105,1735911386308,-500.0,9.254e-05,2]
[347543106,1735911386332,-812.27,9.254e-05,2]
[347543107,1735911386357,-752.4,9.254e-05,2]
[347543108,1735911386381,-760.43,9.254e-05,2]
[347543109,1735911386405,-500.0,9.254e-05,2]
[347543110,1735911386427,-1128.71,9.254e-05,2]
[347543111,1735911386454,-1542.09,9.254e-05,2]
[347543112,1735911386478,-500.0,9.254e-05,2]
[347543113,1735911386502,-500.0,9.254e-05,2]
[347543114,1735911386526,-500.0,9.254e-05,2]
[347543115,1735911386549,-5127.05,9.254e-05,2]
[347543116,1735911386574,-500.0,9.254e-05,2]
[347543117,1735911386598,-1336.17,9.254e-05,2]
[347543118,1735911386623,-1178.16,9.254e-05,2]
[347543119,1735911386650,-1642.66,9.254e-05,2]
[347543120,1735911386674,-659.29,9.254e-05,2]
[347543121,1735911386698,-613.33,9.254e-05,2]
[347543122,1735911386723,-500.0,9.254e-05,2]
[347543123,1735911386746,-792.16,9.254e-05,2]
[347543124,1735911386768,-500.0,9.254e-05,2]
[347543125,1735911386791,-740.65,9.254e-05,2]
[347543126,1735911386813,-1443.42,9.254e-05,2]
[347543127,1735911386834,-604.51,9.254e-05,2]
[347543128,1735911386857,-150.0,9.254e-05,2]
[347543129,1735911386879,-500.0,9.255e-05,2]
[347543130,1735911386902,-500.0,9.255e-05,2]
[347543131,1735911386926,-740.07,9.255e-05,2]
[347543132,1735911386948,-500.0,9.255e-05,2]
[347543133,1735911386971,-500.0,9.255e-05,2]
[347543134,1735911386994,-500.0,9.255e-05,2]
[347543135,1735911387017,-500.0,9.255e-05,2]
[347543136,1735911387040,-665.84,9.255e-05,2]
[347543137,1735911387062,-500.0,9.255e-05,2]
[347543138,1735911387085,-500.0,9.255e-05,2]
[347543139,1735911387108,-500.0,9.255e-05,2]
[347543140,1735911387130,-500.0,9.255e-05,2]
[347543141,1735911387155,-743.93,9.255e-05,2]
[347543142,1735911387178,-500.0,9.255e-05,2]
[347543143,1735911387201,-850.19,9.255e-05,2]
[347543144,1735911387225,-686.44,9.255e-05,2]
[347543145,1735911387248,-506.59,9.255e-05,2]
[347543146,1735911387271,-500.0,9.255e-05,2]
[347543147,1735911387293,-2257.86,9.255e-05,2]
[347543148,1735911387317,-500.0,9.255e-05,2]
[347543149,1735911387340,-500.0,9.255e-05,2]
[347543150,1735911387364,-838.72,9.255e-05,2]
[347543151,1735911387388,-749.12,9.255e-05,2]
[347543152,1735911387414,-934.37,9.255e-05,2]
[347543153,1735911387438,-590.23,9.255e-05,2]
[347543154,1735911387463,-530.67,9.255e-05,2]
[347543155,1735911387487,-500.0,9.255e-05,2]
[347543156,1735911387511,-1043.92,9.255e-05,2]
[347543157,1735911387536,-1937.85,9.255e-05,2]
[347543158,1735911387565,-674.57,9.255e-05,2]
[347543159,1735911387588,-500.0,9.255e-05,2]
[347543160,1735911387612,-712.33,9.255e-05,2]
[347543161,1735911387639,-500.0,9.255e-05,2]
[347543162,1735911387664,-500.0,9.255e-05,2]
[347543163,1735911387688,-1030.35,9.255e-05,2]
[347543164,1735911387714,-500.0,9.255e-05,2]
[347543165,1735911387737,-630.01,9.255e-05,2]
[347543166,1735911387760,-287.59542304,9.255e-05,2]
[347543167,1735911387784,-776.68,9.255e-05,2]
[347543168,1735911387807,-151.0,9.255e-05,2]
[347543169,1735911387830,-3113.75,9.255e-05,2]
[347543170,1735911387855,-5049.47,9.255e-05,2]
[347543171,1735911387879,-5444.29,9.255e-05,2]
[347543172,1735911387904,-2197.61,9.255e-05,2]
[347543173,1735911387929,-5863.45,9.255e-05,2]
[347543174,1735911387952,-2221.62,9.255e-05,2]
[347543175,1735911387975,-553.25,9.255e-05,2]
[347543176,1735911388000,-1033.48,9.255e-05,2]
[347543177,1735911388023,-1261.16,9.255e-05,2]
[347543178,1735911388046,-2921.61,9.255e-05,2]
[347543179,1735911388071,-1738.74,9.255e-05,2]
[347543180,1735911388095,-1589.94,9.255e-05,2]
[347543181,1735911388118,-1958.02,9.255e-05,2]
[347543182,1735911388140,-2248.9,9.255e-05,2]
[347543183,1735911388164,-1902.54,9.255e-05,2]
[347543184,1735911388188,-1187.09,9.255e-05,2]
[347543185,1735911388210,-4363.77,9.255e-05,2]
[347543186,1735911388301,-1174.41,9.255e-05,2]
[347543187,1735911388326,-500.0,9.255e-05,2]
[347543188,1735911388349,-771.47,9.255e-05,2]
[347543189,1735911388373,-1834.24,9.255e-05,2]
[347543190,1735911388396,-4862.5,9.255e-05,2]
[347543191,1735911388422,-1565.6,9.255e-05,2]
[347543192,1735911388445,-151.0,9.256e-05,2]
[347543193,1735911388469,-3788.38,9.256e-05,2]
[347543194,1735911388492,-429.51484354,9.272e-05,2]
[347543195,1735911388517,-150.0,9.288e-05,2]
[347543196,1735911388542,-467.09,9.291e-05,2]
[347543197,1735911388566,-23347.22864302,9.3e-05,2]
[347543198,1735911388589,-152.0,9.318e-05,3]
[347543199,1735911388612,-429.51484354,9.319e-05,2]
[347543200,1735911388640,-150.0,9.323e-05,2]
[347543201,1735911388668,-150.0,9.323e-05,2]
[347543202,1735911388692,-150.0,9.357e-05,2]
[347543203,1735911388716,-150.0,9.391e-05,2]
[347543204,1735911388740,-3300.0,9.4e-05,3]
[347543205,1735911388763,-3935.316997,9.4e-05,2]
[347543206,1735911388785,-150.0,9.402e-05,2]
[347543207,1735911388809,-150.0,9.425e-05,2]
[347543208,1735911388833,-500.0,9.426e-05,2]
[347543209,1735911388856,-500.0,9.426e-05,2]
[347543210,1735911388879,-500.0,9.426e-05,2]
[347543211,1735911388901,-500.0,9.426e-05,2]
[347543212,1735911388928,-500.0,9.426e-05,2]
[347543213,1735911388965,-943.23,9.426e-05,2]
[347543214,1735911388999,-500.0,9.426e-05,2]
[347543215,1735911389034,-779.7,9.426e-05,2]
[347543216,1735911389068,-1155.22,9.426e-05,2]
[347543217,1735911389103,-500.0,9.426e-05,2]
[347543218,1735911389136,-500.0,9.426e-05,2]
[347543219,1735911389170,-500.0,9.426e-05,2]
[347543220,1735911389206,-500.0,9.426e-05,2]
[347543221,1735911389243,-608.97,9.426e-05,2]
[347543222,1735911389276,-500.0,9.426e-05,2]
[347543223,1735911389311,-500.0,9.426e-05,2]
[347543224,1735911389346,-500.0,9.426e-05,2]
[347543225,1735911389382,-830.34,9.426e-05,2]
[347543226,1735911389417,-500.0,9.426e-05,2]
[347543227,1735911389452,-500.0,9.426e-05,2]
[347543228,1735911389487,-865.65,9.426e-05,2]
[347543229,1735911389523,-500.0,9.426e-05,2]
[347543230,1735911389556,-643.51,9.426e-05,2]
[347543231,1735911389592,-500.0,9.426e-05,2]
[347543232,1735911389630,-500.0,9.426e-05,2]
[347543233,1735911389665,-674.23,9.426e-05,2]
[347543234,1735911389701,-500.0,9.426e-05,2]
[347543235,1735911389738,-516.84,9.426e-05,2]
[347543236,1735911389775,-500.0,9.426e-05,2]
[347543237,1735911389813,-500.0,9.426e-05,2]
[347543238,1735911389850,-500.0,9.426e-05,2]
[347543239,1735911389888,-500.0,9.426e-05,2]
[347543240,1735911389925,-1789.19,9.426e-05,2]
[347543241,1735911389962,-500.0,9.426e-05,2]
[347543242,1735911389999,-500.0,9.426e-05,2]
[347543243,1735911390036,-500.0,9.426e-05,2]
[347543244,1735911390072,-636.59842143,9.426e-05,2]
[347543245,1735911390109,-500.0,9.426e-05,2]
[347543246,1735911390146,-601.75,9.426e-05,2]
[347543247,1735911390185,-500.0,9.426e-05,2]
[347543248,1735911390223,-500.0,9.426e-05,2]
[347543249,1735911390259,-500.0,9.426e-05,2]
[347543250,1735911390295,-876.07,9.426e-05,2]
[347543251,1735911390331,-1159.63,9.426e-05,2]
[347543252,1735911390370,-1956.13,9.426e-05,2]
[347543253,1735911390408,-500.0,9.426e-05,2]
[347543254,1735911390448,-800.07,9.426e-05,2]
[347543255,1735911390486,-500.0,9.426e-05,2]
[347543256,1735911390522,-500.0,9.426e-05,2]
[347543257,1735911390557,-552.51,9.426e-05,2]
[347543258,1735911390593,-500.0,9.426e-05,2]
[347543259,1735911390633,-3568.54,9.426e-05,2]
[347543260,1735911390670,-500.0,9.426e-05,2]
[347543261,1735911390706,-500.0,9.426e-05,2]
[347543262,1735911390742,-1539.17,9.426e-05,2]
[347543263,1735911390777,-500.0,9.426e-05,2]
[347543264,1735911390813,-500.0,9.426e-05,2]
[347543265,1735911390848,-500.0,9.426e-05,2]
[347543266,1735911390884,-2710.99,9.426e-05,2]
[347543267,1735911390917,-500.0,9.426e-05,2]
[347543268,1735911390952,-1512.44,9.426e-05,2]
[347543269,1735911390987,-542.73705245,9.426e-05,2]
[347543270,1735911391021,-500.0,9.426e-05,2]
[347543271,1735911391056,-578.8,9.426e-05,2]
[347543272,1735911391091,-500.0,9.426e-05,2]
[347543273,1735911391126,-893.83,9.426e-05,2]
[347543274,1735911391163,-500.0,9.426e-05,2]
[347543275,1735911391201,-4328.13,9.426e-05,2]
[347543276,1735911391238,-500.0,9.426e-05,2]
[347543277,1735911391274,-580.75,9.426e-05,2]
[347543278,1735911391310,-500.0,9.426e-05,2]
[347543279,1735911391345,-890.74,9.426e-05,2]
[347543280,1735911391380,-3195.83,9.426e-05,2]
[347543281,1735911391423,-819.04,9.426e-05,2]
[347543282,1735911391459,-500.0,9.426e-05,2]
[347543283,1735911391496,-500.0,9.426e-05,2]
[347543284,1735911391532,-500.0,9.426e-05,2]
[347543285,1735911391568,-500.0,9.426e-05,2]
[347543286,1735911391604,-500.0,9.426e-05,2]
[347543287,1735911391640,-500.0,9.426e-05,2]
[347543288,1735911391675,-500.0,9.426e-05,2]
[347543289,1735911391720,-874.95,9.426e-05,2]
[347543290,1735911391756,-713.64,9.426e-05,2]
[347543291,1735911391792,-727.12,9.426e-05,2]
[347543292,1735911391827,-500.0,9.426e-05,2]
[347543293,1735911391864,-500.0,9.426e-05,2]
[347543294,1735911391898,-513.57,9.426e-05,2]
[347543295,1735911391933,-653.21,9.426e-05,2]
[347543296,1735911391968,-500.0,9.426e-05,2]
[347543297,1735911392002,-592.41,9.426e-05,2]
[347543298,1735911392037,-719.05,9.426e-05,2]
[347543299,1735911392074,-598.15,9.426e-05,2]
[347543300,1735911392108,-561.09,9.426e-05,2]
[347543301,1735911392142,-500.0,9.426e-05,2]
[347543302,1735911392177,-1274.53,9.426e-05,2]
[347543303,1735911392213,-500.0,9.426e-05,2]
[347543304,1735911392248,-3581.74,9.426e-05,2]
[347543305,1735911392285,-500.0,9.426e-05,2]
[347543306,1735911392321,-500.0,9.426e-05,2]
[347543307,1735911392358,-510.05,9.426e-05,2]
[347543308,1735911392396,-2813.183256,9.426e-05,2]
[347543309,1735911392434,-500.0,9.426e-05,2]
[347543310,1735911392471,-980.19,9.426e-05,2]
[347543311,1735911392507,-500.0,9.426e-05,2]
[347543312,1735911392544,-500.0,9.426e-05,2]
[347543313,1735911392581,-153.671496,9.426e-05,2]
[347543314,1735911392617,-155.826196,9.426e-05,2]
[347543315,1735911392662,-772.4,9.426e-05,2]
[347543316,1735911392700,-666.39,9.426e-05,2]
[347543317,1735911392737,-500.0,9.426e-05,2]
[347543318,1735911392773,-500.0,9.426e-05,2]
[347543319,1735911392809,-500.0,9.426e-05,2]
[347543320,1735911392845,-500.0,9.426e-05,2]
[347543321,1735911392881,-3290.363783,9.426e-05,2]
[347543322,1735911392918,-4022.06,9.426e-05,2]
[347543323,1735911392954,-2609.15,9.426e-05,2]
[347543324,1735911392991,-500.0,9.426e-05,2]
[347543325,1735911393027,-500.0,9.426e-05,2]
[347543326,1735911393065,-150.0,9.442e-05,2]
[347543327,1735911393104,-150.0,9.459e-05,2]
[347543328,1735911393142,-150.0,9.493e-05,2]
[347543329,1735911393179,-1242.66,9.499e-05,2]
[347543330,1735911393217,-1707.56,9.499e-05,2]
[347543331,1735911393258,-3553.31,9.499e-05,2]
[347543332,1735911393297,-786.0,9.5e-05,2]
[347543333,1735911393337,-171368.0,9.5e-05,2]
[347543334,1735911393378,-4400.0,9.5e-05,3]
[347543335,1735911393416,-151.0,9.5e-05,2]
[347543336,1735911393454,-500.0,9.503e-05,2]
[347543337,1735911393493,-3146.0,9.507e-05,2]
[347543338,1735911393531,-500.0,9.526e-05,2]
[347543339,1735911393572,-654.18,9.526e-05,2]
[347543340,1735911393615,-500.0,9.526e-05,2]
[347543341,1735911393656,-595.22,9.526e-05,2]
[347543342,1735911393699,-2319.6,9.526e-05,2]
[347543343,1735911393738,-5182.82,9.526e-05,2]
[347543344,1735911393775,-2533.75,9.526e-05,2]
[347543345,1735911393814,-500.0,9.526e-05,2]
[347543346,1735911393852,-990.12,9.526e-05,2]
[347543347,1735911393890,-2237.9,9.526e-05,2]
[347543348,1735911393928,-902.06,9.526e-05,2]
[347543349,1735911393965,-514.41,9.526e-05,2]
[347543350,1735911394002,-517.22,9.526e-05,2]
[347543351,1735911394040,-1141.87,9.526e-05,2]
[347543352,1735911394077,-500.0,9.526e-05,2]
[347543353,1735911394112,-705.0,9.526e-05,2]
[347543354,1735911394150,-781.64,9.526e-05,2]
[347543355,1735911394188,-500.0,9.526e-05,2]
[347543356,1735911394226,-4742.23,9.526e-05,2]
[347543357,1735911394264,-3458.67,9.526e-05,2]
[347543358,1735911394300,-500.0,9.526e-05,2]
[347543359,1735911394338,-3169.26,9.526e-05,2]
[347543360,1735911394377,-1341.47,9.526e-05,2]
[347543361,1735911394419,-500.0,9.526e-05,2]
[347543362,1735911394458,-500.0,9.526e-05,2]
[347543363,1735911394494,-500.0,9.526e-05,2]
[347543364,1735911394532,-664.94,9.526e-05,2]
[347543365,1735911394817,-2106.77,9.526e-05,2]
[347543366,1735911394855,-500.0,9.526e-05,2]
[347543367,1735911394891,-949.74,9.526e-05,2]
[347543368,1735911394926,-1916.46,9.526e-05,2]
[347543369,1735911394962,-500.0,9.526e-05,2]
[347543370,1735911394999,-832.54,9.526e-05,2]
[347543371,1735911395037,-1707.5,9.526e-05,2]